Workbook

Sheet GA
H3: Site Computer Usage Estimator
F5: Test Administration | G5: Select an Administration
I7: Testing Devices Available in the School | J7: 100
I9: Possible Computer Hours in a Day | J9: 4
I11: Planned Testing Days | J11: 12
I12: ="(Established Test Window is " & Data!$I$57 & " Weekdays)" -> (Established Test Window is 0 Weekdays)
I13: Start Date | J13: =Data!I58 -> 2019-09-17
I14: End Date | J14: =Data!I59 -> 2019-09-17
I16: Number of Test Sessions to be Administered | J16: =S71 -> 0
I18: Usage Percent of Available Testing Devices | J18: =Data!B78 -> 0 | O18: =VLOOKUP(GA!G5,Data!L4:P20,5,FALSE) -> 0 | P18: Longest test time | S18: =MAX(N23:N32,N51:N56,N58:N63,N65:N66,N68:N69)+(Data!I61*1) -> 10 | T18: Sec
S19: =ROUNDUP(S18/60,1) -> 0.2 | T19: Hours
C20: Students to be Tested | I20: Estimated Test Time (Minutes) | O20: Session 1 | P20: Session 2 | Q20: Session 3
F21: End of Course | I21: Section | U21: Average Test Session Length
F22: Subject | I22: 1 | J22: 2 | K22: 3 | O22: Minutes | P22: Minutes | Q22: Minutes
D23: 0 | F23: =Data!A3 -> Ninth Grade Literature and Composition | I23: =Data!C3 -> 90 | J23: =IF(Data!E3=0,"",Data!E3) -> 85 | K23: =IF(Data!G3=0,"",Data!G3) -> 85 | N23: =IF(D23>0,I23,"") ->  | O23: =IFERROR(I23*D23,0) -> 0 | P23: =IFERROR(J23*D23,0) -> 0 | Q23: =IFERROR(K23*D23,0) -> 0 | R23: =COUNT(I23:K23) -> 3 | S23: =R23*D23 -> 0 | U23: =IFERROR((SUM(O23:Q23)/S23),0) -> 0
D24: 0 | F24: =Data!A4 -> American Literature and Composition | I24: =Data!C4 -> 90 | J24: =IF(Data!E4=0,"",Data!E4) -> 85 | K24: =IF(Data!G4=0,"",Data!G4) -> 85 | N24: =IF(D24>0,I24,"") ->  | O24: 0 | P24: 0 | Q24: 0 | R24: 3 | S24: 0 | U24: 0
D25: 0 | F25: =Data!A5 -> Algebra I | I25: =Data!C5 -> 85 | J25: =IF(Data!E5=0,"",Data!E5) -> 85 | K25: =IF(Data!G5=0,"",Data!G5) ->  | O25: 0 | P25: 0 | Q25: 0 | R25: 2 | S25: 0 | U25: 0
D26: 0 | F26: =Data!A6 -> Analytic Geometry | I26: =Data!C6 -> 85 | J26: =IF(Data!E6=0,"",Data!E6) -> 85 | K26: =IF(Data!G6=0,"",Data!G6) ->  | O26: 0 | P26: 0 | Q26: 0 | R26: 2 | S26: 0 | U26: 0
D27: 0 | F27: =Data!A7 -> Biology | I27: =Data!C7 -> 70 | J27: =IF(Data!E7=0,"",Data!E7) -> 70 | K27: =IF(Data!G7=0,"",Data!G7) ->  | O27: 0 | P27: 0 | Q27: 0 | R27: 2 | S27: 0 | U27: 0
D28: 0 | F28: =Data!A8 -> Coordinate Algebra | I28: =Data!C8 -> 85 | J28: =IF(Data!E8=0,"",Data!E8) -> 85 | K28: =IF(Data!G8=0,"",Data!G8) ->  | O28: 0 | P28: 0 | Q28: 0 | R28: 2 | S28: 0 | U28: 0
D29: 0 | F29: =Data!A9 -> Economics/Business/Free Enterprise | I29: =Data!C9 -> 70 | J29: =IF(Data!E9=0,"",Data!E9) -> 70 | K29: =IF(Data!G9=0,"",Data!G9) ->  | O29: 0 | P29: 0 | Q29: 0 | R29: 2 | S29: 0 | U29: 0
D30: 0 | F30: =Data!A10 -> Geometry | I30: =Data!C10 -> 85 | J30: =IF(Data!E10=0,"",Data!E10) -> 85 | K30: =IF(Data!G10=0,"",Data!G10) ->  | O30: 0 | P30: 0 | Q30: 0 | R30: 2 | S30: 0 | U30: 0
D31: 0 | F31: =Data!A11 -> Physical Science | I31: =Data!C11 -> 70 | J31: =IF(Data!E11=0,"",Data!E11) -> 70 | K31: =IF(Data!G11=0,"",Data!G11) ->  | O31: 0 | P31: 0 | Q31: 0 | R31: 2 | S31: 0 | U31: 0
D32: 0 | F32: =Data!A12 -> United States History | I32: =Data!C12 -> 70 | J32: =IF(Data!E12=0,"",Data!E12) -> 70 | K32: =IF(Data!G12=0,"",Data!G12) ->  | O32: 0 | P32: 0 | Q32: 0 | R32: 2 | S32: 0 | U32: 0
D33: 0 | O33: 0 | P33: 0 | Q33: 0
D34: 0 | F34: =Data!A14 -> 0 | G34: =IF(Data!B14=0,"",Data!B14) ->  | I34: =Data!C14 -> 0 | J34: =IF(Data!E14=0,"",Data!E14) ->  | K34: =IF(Data!G14=0,"",Data!G14) ->  | O34: 0 | P34: 0 | Q34: 0 | R34: =COUNT(I34:K34) -> 1 | S34: =R34*D34 -> 0
D35: 0 | F35: =Data!A15 -> 0 | G35: =IF(Data!B15=0,"",Data!B15) ->  | I35: =Data!C15 -> 0 | J35: =IF(Data!E15=0,"",Data!E15) ->  | K35: =IF(Data!G15=0,"",Data!G15) ->  | O35: 0 | P35: 0 | Q35: 0 | R35: 1 | S35: 0
D36: 0 | F36: =Data!A16 -> 0 | G36: =IF(Data!B16=0,"",Data!B16) ->  | I36: =Data!C16 -> 0 | J36: =IF(Data!E16=0,"",Data!E16) ->  | K36: =IF(Data!G16=0,"",Data!G16) ->  | O36: 0 | P36: 0 | Q36: 0 | R36: 1 | S36: 0
D37: 0 | F37: =Data!A17 -> 0 | G37: =IF(Data!B17=0,"",Data!B17) ->  | I37: =Data!C17 -> 0 | J37: =IF(Data!E17=0,"",Data!E17) ->  | K37: =IF(Data!G17=0,"",Data!G17) ->  | O37: 0 | P37: 0 | Q37: 0 | R37: 1 | S37: 0
D38: 0 | F38: =Data!A18 -> 0 | G38: =IF(Data!B18=0,"",Data!B18) ->  | I38: =Data!C18 -> 0 | J38: =IF(Data!E18=0,"",Data!E18) ->  | K38: =IF(Data!G18=0,"",Data!G18) ->  | O38: 0 | P38: 0 | Q38: 0 | R38: 1 | S38: 0
D39: 0 | F39: =Data!A19 -> 0 | G39: =IF(Data!B19=0,"",Data!B19) ->  | I39: =Data!C19 -> 0 | J39: =IF(Data!E19=0,"",Data!E19) ->  | K39: =IF(Data!G19=0,"",Data!G19) ->  | O39: 0 | P39: 0 | Q39: 0 | R39: 1 | S39: 0
D40: 0 | F40: =Data!A20 -> 0 | G40: =IF(Data!B20=0,"",Data!B20) ->  | I40: =Data!C20 -> 0 | J40: =IF(Data!E20=0,"",Data!E20) ->  | K40: =IF(Data!G20=0,"",Data!G20) ->  | O40: 0 | P40: 0 | Q40: 0 | R40: 1 | S40: 0
D41: 0 | F41: =Data!A21 -> 0 | G41: =IF(Data!B21=0,"",Data!B21) ->  | I41: =Data!C21 -> 0 | J41: =IF(Data!E21=0,"",Data!E21) ->  | K41: =IF(Data!G21=0,"",Data!G21) ->  | O41: 0 | P41: 0 | Q41: 0 | R41: 1 | S41: 0
D42: 0
D43: 0 | F43: =Data!A23 -> 0 | G43: =IF(Data!B23=0,"",Data!B23) ->  | I43: =Data!C23 -> 0 | J43: =IF(Data!E23=0,"",Data!E23) ->  | K43: =IF(Data!G23=0,"",Data!G23) ->  | R43: =COUNT(I43:K43) -> 1 | S43: =R43*D43 -> 0
D44: 0 | F44: =Data!A24 -> 0 | G44: =IF(Data!B24=0,"",Data!B24) ->  | I44: =Data!C24 -> 0 | J44: =IF(Data!E24=0,"",Data!E24) ->  | K44: =IF(Data!G24=0,"",Data!G24) ->  | R44: =COUNT(I44:K44) -> 1 | S44: =R44*D44 -> 0
D45: 0 | F45: =Data!A25 -> 0 | G45: =IF(Data!B25=0,"",Data!B25) ->  | I45: =Data!C25 -> 0 | J45: =IF(Data!E25=0,"",Data!E25) ->  | K45: =IF(Data!G25=0,"",Data!G25) ->  | R45: =COUNT(I45:K45) -> 1 | S45: =R45*D45 -> 0
O48: =IFERROR(I48*D48,0) -> 0 | P48: =IFERROR(J48*D48,0) -> 0 | Q48: =IFERROR(K48*D48,0) -> 0
F49: End of Grade | I49: Section | O49: =IFERROR(I43*D43,0) -> 0 | P49: =IFERROR(J43*D43,0) -> 0 | Q49: =IFERROR(K43*D43,0) -> 0
F50: Subject | G50: Grade | I50: 1 | J50: 2 | K50: 3 | O50: =IFERROR(I44*D44,0) -> 0 | P50: =IFERROR(J44*D44,0) -> 0 | Q50: =IFERROR(K44*D44,0) -> 0
D51: 0 | F51: =Data!A31 -> English Language Arts | G51: =Data!B31 -> Grade 3 | I51: =Data!C31 -> 90 | J51: =IF(Data!E31=0,"",Data!E31) -> 85 | K51: =IF(Data!G31=0,"",Data!G31) -> 85 | N51: =IF(D51>0,I51,"") ->  | O51: =IFERROR(I51*D51,0) -> 0 | P51: =IFERROR(J51*D51,0) -> 0 | Q51: =IFERROR(K51*D51,0) -> 0 | R51: =COUNT(I51:K51) -> 3 | S51: =R51*D51 -> 0 | U51: =IFERROR((SUM(O51:Q51)/S51),0) -> 0
D52: 0 | F52: =Data!A32 -> English Language Arts | G52: =Data!B32 -> Grade 4 | I52: =Data!C32 -> 90 | J52: =IF(Data!E32=0,"",Data!E32) -> 85 | K52: =IF(Data!G32=0,"",Data!G32) -> 85 | O52: 0 | P52: 0 | Q52: 0 | R52: 3 | S52: 0 | U52: 0
D53: 0 | F53: =Data!A33 -> English Language Arts | G53: =Data!B33 -> Grade 5 | I53: =Data!C33 -> 90 | J53: =IF(Data!E33=0,"",Data!E33) -> 85 | K53: =IF(Data!G33=0,"",Data!G33) -> 85 | O53: 0 | P53: 0 | Q53: 0 | R53: 3 | S53: 0 | U53: 0
D54: 0 | F54: =Data!A34 -> English Language Arts | G54: =Data!B34 -> Grade 6 | I54: =Data!C34 -> 90 | J54: =IF(Data!E34=0,"",Data!E34) -> 85 | K54: =IF(Data!G34=0,"",Data!G34) -> 85 | O54: 0 | P54: 0 | Q54: 0 | R54: 3 | S54: 0 | U54: 0
D55: 0 | F55: =Data!A35 -> English Language Arts | G55: =Data!B35 -> Grade 7 | I55: =Data!C35 -> 90 | J55: =IF(Data!E35=0,"",Data!E35) -> 85 | K55: =IF(Data!G35=0,"",Data!G35) -> 85 | O55: 0 | P55: 0 | Q55: 0 | R55: 3 | S55: 0 | U55: 0
D56: 0 | F56: =Data!A36 -> English Language Arts | G56: =Data!B36 -> Grade 8 | I56: =Data!C36 -> 90 | J56: =IF(Data!E36=0,"",Data!E36) -> 85 | K56: =IF(Data!G36=0,"",Data!G36) -> 85 | O56: 0 | P56: 0 | Q56: 0 | R56: 3 | S56: 0 | U56: 0
D58: 0 | F58: =Data!A38 -> Mathematics | G58: =Data!B38 -> Grade 3 | I58: =Data!C38 -> 85 | J58: =IF(Data!E38=0,"",Data!E38) -> 85 | K58: =IF(Data!G38=0,"",Data!G38) ->  | N58: =IF(D58>0,I58,"") ->  | O58: =IFERROR(I58*D58,0) -> 0 | P58: =IFERROR(J58*D58,0) -> 0 | Q58: =IFERROR(K58*D58,0) -> 0 | R58: =COUNT(I58:K58) -> 2 | S58: =R58*D58 -> 0 | U58: =IFERROR((SUM(O58:Q58)/S58),0) -> 0
D59: 0 | F59: =Data!A39 -> Mathematics | G59: =Data!B39 -> Grade 4 | I59: =Data!C39 -> 85 | J59: =IF(Data!E39=0,"",Data!E39) -> 85 | K59: =IF(Data!G39=0,"",Data!G39) ->  | O59: 0 | P59: 0 | Q59: 0 | R59: 2 | S59: 0 | U59: 0
D60: 0 | F60: =Data!A40 -> Mathematics | G60: =Data!B40 -> Grade 5 | I60: =Data!C40 -> 85 | J60: =IF(Data!E40=0,"",Data!E40) -> 85 | K60: =IF(Data!G40=0,"",Data!G40) ->  | O60: 0 | P60: 0 | Q60: 0 | R60: 2 | S60: 0 | U60: 0
D61: 0 | F61: =Data!A41 -> Mathematics | G61: =Data!B41 -> Grade 6 | I61: =Data!C41 -> 85 | J61: =IF(Data!E41=0,"",Data!E41) -> 85 | K61: =IF(Data!G41=0,"",Data!G41) ->  | O61: 0 | P61: 0 | Q61: 0 | R61: 2 | S61: 0 | U61: 0
D62: 0 | F62: =Data!A42 -> Mathematics | G62: =Data!B42 -> Grade 7 | I62: =Data!C42 -> 85 | J62: =IF(Data!E42=0,"",Data!E42) -> 85 | K62: =IF(Data!G42=0,"",Data!G42) ->  | O62: 0 | P62: 0 | Q62: 0 | R62: 2 | S62: 0 | U62: 0
D63: 0 | F63: =Data!A43 -> Mathematics | G63: =Data!B43 -> Grade 8 | I63: =Data!C43 -> 85 | J63: =IF(Data!E43=0,"",Data!E43) -> 85 | K63: =IF(Data!G43=0,"",Data!G43) ->  | O63: 0 | P63: 0 | Q63: 0 | R63: 2 | S63: 0 | U63: 0
D65: 0 | F65: =Data!A45 -> Science | G65: =Data!B45 -> Grade 5 | I65: =Data!C45 -> 70 | J65: =IF(Data!E45=0,"",Data!E45) -> 70 | K65: =IF(Data!G45=0,"",Data!G45) ->  | N65: =IF(D65>0,I65,"") ->  | O65: =IFERROR(I65*D65,0) -> 0 | P65: =IFERROR(J65*D65,0) -> 0 | Q65: =IFERROR(K65*D65,0) -> 0 | R65: =COUNT(I65:K65) -> 2 | S65: =R65*D65 -> 0 | U65: =IFERROR((SUM(O65:Q65)/S65),0) -> 0
D66: 0 | F66: =Data!A46 -> Science | G66: =Data!B46 -> Grade 8 | I66: =Data!C46 -> 70 | J66: =IF(Data!E46=0,"",Data!E46) -> 70 | K66: =IF(Data!G46=0,"",Data!G46) ->  | O66: =IFERROR(I66*D66,0) -> 0 | P66: =IFERROR(J66*D66,0) -> 0 | Q66: =IFERROR(K66*D66,0) -> 0 | R66: =COUNT(I66:K66) -> 2 | S66: =R66*D66 -> 0 | U66: =IFERROR((SUM(O66:Q66)/S66),0) -> 0
J67: =IF(Data!E47=0,"",Data!E47) ->  | K67: =IF(Data!G47=0,"",Data!G47) -> 
D68: 0 | F68: =Data!A48 -> Social Studies | G68: =Data!B48 -> Grade 5 | I68: =Data!C48 -> 70 | J68: =IF(Data!E48=0,"",Data!E48) -> 70 | K68: =IF(Data!G48=0,"",Data!G48) ->  | N68: =IF(D68>0,I68,"") ->  | O68: =IFERROR(I68*D68,0) -> 0 | P68: =IFERROR(J68*D68,0) -> 0 | Q68: =IFERROR(K68*D68,0) -> 0 | R68: =COUNT(I68:K68) -> 2 | S68: =R68*D68 -> 0 | U68: =IFERROR((SUM(O68:Q68)/S68),0) -> 0
D69: 0 | F69: =Data!A49 -> Social Studies | G69: =Data!B49 -> Grade 8 | I69: =Data!C49 -> 70 | J69: =IF(Data!E49=0,"",Data!E49) -> 70 | K69: =IF(Data!G49=0,"",Data!G49) ->  | O69: =IFERROR(I69*D69,0) -> 0 | P69: =IFERROR(J69*D69,0) -> 0 | Q69: =IFERROR(K69*D69,0) -> 0 | R69: =COUNT(I69:K69) -> 2 | S69: =R69*D69 -> 0 | U69: =IFERROR((SUM(O69:Q69)/S69),0) -> 0
O71: =SUM(O23:Q69) -> 0 | P71: Total Minutes | S71: =SUM(S23:S69) -> 0 | T71: Total Test Sessions
L72: ver. 1.1 | S72: =IFERROR(ROUNDUP(O71/S71,0),0) -> 0 | T72: Average Test Session Length

Sheet Data (hidden)
C1: GA - EOC Duration (Minutes)
A2: Subject | B2: Grade | C2: Session 1 | E2: Session 2 | G2: Session 3 | I2: Total
A3: Ninth Grade Literature and Composition | C3: 90 | E3: 85 | G3: 85 | I3: =C3+E3+G3 -> 260 | M3: Start Date | N3: End Date | O3: Days
A4: American Literature and Composition | C4: 90 | E4: 85 | G4: 85 | I4: =C4+E4+G4 -> 260 | L4: Select an Administration | M4: =TODAY() -> 2019-09-17 | N4: =TODAY() -> 2019-09-17 | O4: 0
A5: Algebra I | C5: 85 | E5: 85 | G5: 0 | I5: =C5+E5+G5 -> 170 | L5: EOC Fall Mid-Month - August | M5: 2019-08-05 | N5: 2019-08-23 | O5: =NETWORKDAYS(M5,N5,$M$73:$M$120) -> 15 | P5: EOC | R5: Keystone
A6: Analytic Geometry | C6: 85 | E6: 85 | G6: 0 | I6: 170 | L6: EOC Fall Mid-Month - September | M6: 2019-09-09 | N6: 2019-09-20 | O6: 10 | P6: EOC | R6: All
A7: Biology | C7: 70 | E7: 70 | G7: 0 | I7: 140 | L7: EOC Fall Mid-Month - October | M7: 2019-10-07 | N7: 2019-10-18 | O7: 10 | P7: EOC | R7: ELA
A8: Coordinate Algebra | C8: 85 | E8: 85 | G8: 0 | I8: 170 | L8: EOC Fall Mid-Month - November | M8: 2019-11-04 | N8: 2019-11-15 | O8: 10 | P8: EOC | R8: Mathematics
A9: Economics/Business/Free Enterprise | C9: 70 | E9: 70 | G9: 0 | I9: 140
A10: Geometry | C10: 85 | E10: 85 | G10: 0 | I10: 170 | L10: EOC Winter Main | M10: 2019-11-18 | N10: 2020-01-08 | O10: =NETWORKDAYS(M10,N10,$M$73:$M$120) -> 28 | P10: EOC | R10: Science
A11: Physical Science | C11: 70 | E11: 70 | G11: 0 | I11: 140
A12: United States History | C12: 70 | E12: 70 | G12: 0 | I12: 140 | L12: EOC Spring Mid-Month - January | M12: 2020-01-13 | N12: 2020-01-24 | O12: =NETWORKDAYS(M12,N12,$M$73:$M$120) -> 9 | P12: EOC | R12: All
C13: Session 1 | E13: Session 2 | G13: Session 3 | I13: Total | L13: EOC Spring Mid-Month - February | M13: 2020-02-10 | N13: 2020-02-21 | O13: =NETWORKDAYS(M13,N13,$M$73:$M$120) -> 9 | P13: EOC | R13: Keystone
C14: 0 | E14: 0 | G14: 0 | I14: =C14+E14+G14 -> 0 | L14: EOC Spring Mid-Month - March | M14: 2020-03-09 | N14: 2020-03-20 | O14: =NETWORKDAYS(M14,N14,$M$73:$M$120) -> 10 | P14: EOC | R14: Keystone
C15: 0 | E15: 0 | G15: 0 | I15: 0 | L15: EOC Spring Main | M15: 2020-04-20 | N15: 2020-05-29 | O15: =NETWORKDAYS(M15,N15,$M$73:$M$120) -> 30 | P15: EOC
C16: 0 | E16: 0 | G16: 0 | I16: 0
C17: 0 | E17: 0 | G17: 0 | I17: 0 | L17: EOC Summer Main | M17: 2020-06-15 | N17: 2020-07-17 | O17: =NETWORKDAYS(M17,N17,$M$73:$M$120) -> 25 | P17: EOC | R17: Keystone
C18: 0 | E18: 0 | G18: 0 | I18: 0
C19: 0 | E19: 0 | G19: 0 | I19: 0 | L19: EOG Spring Main | M19: 2020-04-06 | N19: 2020-05-15 | O19: =NETWORKDAYS(M19,N19,$M$73:$M$120) -> 30 | P19: EOG | R19: All
C20: 0 | E20: 0 | G20: 0 | I20: 0
C21: 0 | E21: 0 | G21: 0 | I21: 0
C23: 0 | E23: 0 | G23: 0 | I23: =C23+E23+G23 -> 0
C24: 0 | E24: 0 | G24: 0 | I24: 0
C25: 0 | E25: 0 | G25: 0 | I25: 0
C29: GA - EOG Duration (Minutes) | L29: EOG Summer Retest | M29: 2020-05-11 | N29: 2020-07-17 | O29: =NETWORKDAYS(M29,N29,$M$73:$M$120) -> 50 | P29: EOG-Retest | R29: ELA
A30: Subject | B30: Grade | C30: Session 1 | E30: Session 2 | G30: Session 3 | I30: Total
A31: English Language Arts | B31: Grade 3 | C31: 90 | E31: 85 | G31: 85 | I31: =SUM(C31,E31,G31) -> 260
A32: English Language Arts | B32: Grade 4 | C32: 90 | E32: 85 | G32: 85 | I32: =C32+E32+G32 -> 260
A33: English Language Arts | B33: Grade 5 | C33: 90 | E33: 85 | G33: 85 | I33: 260
A34: English Language Arts | B34: Grade 6 | C34: 90 | E34: 85 | G34: 85 | I34: 260
A35: English Language Arts | B35: Grade 7 | C35: 90 | E35: 85 | G35: 85 | I35: 260
A36: English Language Arts | B36: Grade 8 | C36: 90 | E36: 85 | G36: 85 | I36: 260
C37: Session 1 | E37: Session 2 | G37: Session 3
A38: Mathematics | B38: Grade 3 | C38: 85 | E38: 85 | G38: 0 | I38: 170
A39: Mathematics | B39: Grade 4 | C39: 85 | E39: 85 | G39: 0 | I39: 170
A40: Mathematics | B40: Grade 5 | C40: 85 | E40: 85 | G40: 0 | I40: 170
A41: Mathematics | B41: Grade 6 | C41: 85 | E41: 85 | G41: 0 | I41: 170
A42: Mathematics | B42: Grade 7 | C42: 85 | E42: 85 | G42: 0 | I42: 170
A43: Mathematics | B43: Grade 8 | C43: 85 | E43: 85 | G43: 0 | I43: =C43+E43+G43 -> 170
C44: Session 1 | E44: Session 2 | G44: Session 3
A45: Science | B45: Grade 5 | C45: 70 | E45: 70 | G45: 0 | I45: =SUM(C45,E45,G45) -> 140
A46: Science | B46: Grade 8 | C46: 70 | E46: 70 | G46: 0 | I46: =SUM(C46,E46,G46) -> 140
A48: Social Studies | B48: Grade 5 | C48: 70 | E48: 70 | G48: 0 | I48: =SUM(C48,E48,G48) -> 140
A49: Social Studies | B49: Grade 8 | C49: 70 | E49: 70 | G49: 0 | I49: 140
H51: Nbr of testing days in established test window | I51: =VLOOKUP(GA!G5,Data!L4:O20,4,FALSE) -> 0
H57: Nbr of testing days in established test window | I57: =IFERROR(VLOOKUP(GA!G5,Data!L4:P20,4,FALSE),"") -> 0
H58: Start Date | I58: =IFERROR(VLOOKUP(GA!G5,Data!L4:P20,2,FALSE),"") -> 2019-09-17
H59: End Date | I59: =IFERROR(VLOOKUP(GA!G5,Data!L4:P20,3,FALSE),"") -> 2019-09-17
H61: Break - Minutes between tests | I61: 10
B63: Hours | C63: Minutes
B64: =ROUND(C64/60,0) -> 0 | C64: =SUM(GA!O23:Q69)+(GA!S71*I61) -> 0 | D64: Required Testing Minutes
B65: =ROUND(C65/60,0) -> 4800 | C65: =ROUND(((GA!J7*(GA!J9*60))*GA!J11),0) -> 288000 | D65: Available Testing Minutes
C66: =IFERROR(C64/C65,0) -> 0
B68: =GA!J9*60 -> 240 | C68: Total possible minutes per computer per day
B69: =B68*GA!J7 -> 24000 | C69: Total possible computer minutes per day
B71: =GA!S72+Data!I61 -> 10 | C71: Average Test Session Length + Break Period
L72: Holidays and Winter Break | M72: Date
B73: =ROUNDDOWN(B68/B71,0) -> 24 | C73: Possible test sessions per computer per day | L73: Labor Day | M73: 2017-09-04
B74: =B73*GA!J7 -> 2400 | C74: Total possible test session per day | L74: Thanksgiving | M74: 2017-11-23
L75: Day after Thanksgiving | M75: 2017-11-24
B76: =B74*GA!J11 -> 28800 | C76: Total possible test session during window | L76: Christmas Eve | M76: 2017-12-24
B77: =GA!S71 -> 0 | C77: Total Test Sessions | L77: Christmas | M77: 2017-12-25
B78: =IFERROR(B77/B76,"Error") -> 0 | L78: Day After Christmas | M78: 2017-12-26
L79: Winter Break | M79: 2017-12-27
L80: Winter Break | M80: 2017-12-28
L81: Winter Break | M81: 2017-12-29
L82: Winter Break | M82: 2017-12-30
L83: Winter Break | M83: 2017-12-31
L84: New Year’s Day | M84: 2018-01-01
L85: Martin Luther King Day | M85: 2018-01-15
L86: President’s Day | M86: 2018-02-19
L87: Memorial Day | M87: 2018-05-28
L88: Independence Day | M88: 2018-07-04
L89: Labor Day | M89: 2018-09-03
L90: Thanksgiving | M90: 2018-11-22
L91: Day after Thanksgiving | M91: 2018-11-23
L92: Christmas Eve | M92: 2018-12-24
L93: Christmas | M93: 2018-12-25
L94: Winter Break | M94: 2018-12-26
L95: Winter Break | M95: 2018-12-27
L96: Winter Break | M96: 2018-12-28
L97: Winter Break | M97: 2018-12-29
L98: Winter Break | M98: 2018-12-30
L99: Winter Break | M99: 2018-12-31
L100: New Year’s Day | M100: 2019-01-01
L101: Martin Luther King Day | M101: 2019-01-14
L102: President’s Day | M102: 2019-02-18
L103: Memorial Day | M103: 2019-05-27
L104: Independence Day | M104: 2018-07-04
L105: Labor Day | M105: 2019-09-02
L106: Thanksgiving | M106: 2019-11-28
L107: Day after Thanksgiving | M107: 2019-11-29
L108: Winter Break | M108: 2019-12-23
L109: Christmas Eve | M109: 2019-12-24
L110: Christmas | M110: 2019-12-25
L111: Winter Break | M111: 2019-12-26
L112: Winter Break | M112: 2019-12-27
L113: Winter Break | M113: 2019-12-28
L114: Winter Break | M114: 2019-12-29
L115: Winter Break | M115: 2019-12-30
L116: Winter Break | M116: 2019-12-31
L117: New Year’s Day | M117: 2020-01-01
L118: Martin Luther King Day | M118: 2020-01-13
L119: President’s Day | M119: 2020-02-17
L120: Memorial Day | M120: 2020-02-25

Sheet Sheet2 (hidden)
E2: EOC Fall Mid-Month | I2: EOC Winter Main | J2: EOC Spring Mid-Month | M2: EOC Spring Main | N2: EOC Summer Main | O2: EOG Spring Main | P2: EOG Summer Retest
B3: EOC Assessments | C3: Testing Time | D3: Testing Time | E3: August 6 – 24, 2018 | F3: September 10–21, 2018 | G3: October 9 – 19, 2018 | H3: November 5–16, 2018 | I3: November 26, 2018 – January 4, 2019 | J3: January 14–25, 2019 | K3: February 11–22, 2019 | L3: March 11–22, 2019 | M3: April 22 – May 31, 2019 | N3: June 17 – July 19, 2019 | O3: April 8–May 17, 2019 | P3: May 13 – July 19, 2019
E4: 2018-08-06 | F4: 2018-09-10 | G4: 2018-10-09 | H4: 2018-11-05 | I4: 2018-11-26 | J4: 2019-01-14 | K4: 2019-02-11 | L4: 2019-03-11 | M4: 2019-04-22 | N4: 2019-06-17 | O4: 2019-04-08 | P4: 2019-05-13
E5: 2018-08-24 | F5: 2018-09-21 | G5: 2018-10-19 | H5: 2018-11-16 | I5: 2019-01-04 | J5: 2019-01-25 | K5: 2019-02-22 | L5: 2019-03-22 | M5: 2019-05-31 | N5: 2019-07-19 | O5: 2019-05-17 | P5: 2019-07-19 | R5: ProjectCode | S5: Admin Name | V5: State Testing Window
B6: Ninth Grade Literature and Composition – Section 1 | C6: 70-90 Minutes | D6: =MROUND((70+90)/2,5) -> 80 | E6: X | F6: X | G6: X | H6: X | I6: X | J6: X | K6: X | L6: X | M6: X | N6: X | S6: EOC Fall Mid-Month - September | T6: 2018-09-10 | U6: 2018-09-21 | V6: September 10–21, 2018
B7: Ninth Grade Literature and Composition – Section 2 | C7: 60-85 Minutes | D7: =MROUND((60+85)/2,5) -> 75 | E7: X | F7: X | G7: X | H7: X | I7: X | J7: X | K7: X | L7: X | M7: X | N7: X | S7: EOC Fall Mid-Month - October | T7: 2018-10-09 | U7: 2018-10-19 | V7: October 9–19, 2018
B8: Ninth Grade Literature and Composition – Section 3 | C8: 60-85 Minutes | D8: =MROUND((60+85)/2,5) -> 75 | E8: X | F8: X | G8: X | H8: X | I8: X | J8: X | K8: X | L8: X | M8: X | N8: X | S8: EOC Fall Mid-Month - November | T8: 2018-11-05 | U8: 2018-11-16 | V8: November 5–16, 2018
B9: American Literature and Composition – Section 1 | C9: 70-90 Minutes | D9: =MROUND((70+90)/2,5) -> 80 | E9: X | F9: X | G9: X | H9: X | I9: X | J9: X | K9: X | L9: X | M9: X | N9: X | R9: EGA933 | S9: EOC Winter Main | T9: 2018-11-26 | U9: 2019-01-04 | V9: November 26, 2018–January 4, 2019
B10: American Literature and Composition – Section 2 | C10: 60-85 Minutes | D10: =MROUND((60+85)/2,5) -> 75 | E10: X | F10: X | G10: X | H10: X | I10: X | J10: X | K10: X | L10: X | M10: X | N10: X | R10: EGA934 | S10: EOC Spring Mid-Month - January | T10: 2019-01-14 | U10: 2019-01-25 | V10: January 14–25, 2019
B11: American Literature and Composition – Section 3 | C11: 60-85 Minutes | D11: 75 | E11: X | F11: X | G11: X | H11: X | I11: X | J11: X | K11: X | L11: X | M11: X | N11: X | S11: EOC Spring Mid-Month - February | T11: 2019-02-11 | U11: 2019-02-22 | V11: February 11–22, 2019
B12: Coordinate Algebra – Section 1 | C12: 60-85 Minutes | D12: 75 | E12: X | F12: X | G12: X | H12: X | I12: X | J12: X | K12: X | L12: X | M12: X | N12: X | S12: EOC Spring Mid-Month - March | T12: 2019-03-11 | U12: 2019-03-22 | V12: March 11–22, 2019
B13: Coordinate Algbera – Section 2 | C13: 60-85 Minutes | D13: 75 | E13: X | F13: X | G13: X | H13: X | I13: X | J13: X | K13: X | L13: X | M13: X | N13: X | R13: EGA935 | S13: EOC Spring Main | T13: 2019-04-22 | U13: 2019-05-31 | V13: April 22–May 31, 2019
B14: Analytic Geometry – Section 1 | C14: 60-85 Minutes | D14: 75 | E14: X | F14: X | G14: X | H14: X | I14: X | J14: X | K14: X | L14: X | M14: X | N14: X | R14: EGA936 | S14: EOC Summer Main | T14: 2019-06-17 | U14: 2019-07-19 | V14: June 17–July 19, 2019
B15: Analytic Geometry – Section 2 | C15: 60-85 Minutes | D15: 75 | E15: X | F15: X | G15: X | H15: X | I15: X | J15: X | K15: X | L15: X | M15: X | N15: X | R15: EGA925 | S15: EOG Spring Main | T15: 2019-04-08 | U15: 2019-05-17 | V15: April 8–May 17, 2019
B16: Algebra I – Section 1 | C16: 60-85 Minutes | D16: 75 | E16: X | F16: X | G16: X | H16: X | I16: X | J16: X | K16: X | L16: X | M16: X | N16: X | R16: EGA926 | S16: EOG Summer Retest | T16: 2019-05-13 | U16: 2019-07-19 | V16: May 13–July 19, 2019
B17: Algebra I – Section 2 | C17: 60-85 Minutes | D17: 75 | E17: X | F17: X | G17: X | H17: X | I17: X | J17: X | K17: X | L17: X | M17: X | N17: X
B18: Geometry – Section 1 | C18: 60-85 Minutes | D18: 75 | E18: X | F18: X | G18: X | H18: X | I18: X | J18: X | K18: X | L18: X | M18: X | N18: X
B19: Geometry – Section 2 | C19: 60-85 Minutes | D19: 75 | E19: X | F19: X | G19: X | H19: X | I19: X | J19: X | K19: X | L19: X | M19: X | N19: X
B20: Biology – Section 1 | C20: 45-70 Minutes | D20: =MROUND((45+70)/2,5) -> 60 | E20: X | F20: X | G20: X | H20: X | I20: X | J20: X | K20: X | L20: X | M20: X | N20: X
B21: Biology – Section 2 | C21: 45-70 Minutes | D21: =MROUND((45+70)/2,5) -> 60 | E21: X | F21: X | G21: X | H21: X | I21: X | J21: X | K21: X | L21: X | M21: X | N21: X
B22: Physical Science – Section 1 | C22: 45-70 Minutes | D22: 60 | E22: X | F22: X | G22: X | H22: X | I22: X | J22: X | K22: X | L22: X | M22: X | N22: X
B23: Physical Science – Section 2 | C23: 45-70 Minutes | D23: 60 | E23: X | F23: X | G23: X | H23: X | I23: X | J23: X | K23: X | L23: X | M23: X | N23: X
B24: United States History – Section 1 | C24: 45-70 Minutes | D24: 60 | E24: X | F24: X | G24: X | H24: X | I24: X | J24: X | K24: X | L24: X | M24: X | N24: X
B25: United States History – Section 2 | C25: 45-70 Minutes | D25: 60 | E25: X | F25: X | G25: X | H25: X | I25: X | J25: X | K25: X | L25: X | M25: X | N25: X
B26: Economics/Business/Free Enterprise – Section 1 | C26: 45-70 Minutes | D26: 60 | E26: X | F26: X | G26: X | H26: X | I26: X | J26: X | K26: X | L26: X | M26: X | N26: X
B27: Economics/Business/Free Enterprise – Section 2 | C27: 45-70 Minutes | D27: 60 | E27: X | F27: X | G27: X | H27: X | I27: X | J27: X | K27: X | L27: X | M27: X | N27: X
E28: EOG Spring Main | F28: EOG Summer Retest
B29: EOG Assessments | C29: Testing Time | D29: Testing Time | E29: April 8–May 17, 2019 | F29: May 13 – July 19, 2019
B30: Grade 3 English Language Arts – Section 1 | C30: 70-90 Minutes | D30: =MROUND((70+90)/2,5) -> 80 | E30: X | F30: X
B31: Grade 3 English Language Arts – Section 2 | C31: 60-85 Minutes | D31: =MROUND((60+85)/2,5) -> 75 | E31: X | F31: X
B32: Grade 3 English Language Arts – Section 3 | C32: 60-85 Minutes | D32: =MROUND((60+85)/2,5) -> 75 | E32: X
B33: Grade 4 English Language Arts – Section 1 | C33: 70-90 Minutes | D33: =MROUND((70+90)/2,5) -> 80 | E33: X
B34: Grade 4 English Language Arts – Section 2 | C34: 60-85 Minutes | D34: =MROUND((60+85)/2,5) -> 75 | E34: X
B35: Grade 4 English Language Arts – Section 3 | C35: 60-85 Minutes | D35: 75 | E35: X
B36: Grade 5 English Language Arts – Section 1 | C36: 70-90 Minutes | D36: =MROUND((70+90)/2,5) -> 80 | E36: X | F36: X
B37: Grade 5 English Language Arts – Section 2 | C37: 60-85 Minutes | D37: =MROUND((60+85)/2,5) -> 75 | E37: X | F37: X
B38: Grade 5 English Language Arts – Section 3 | C38: 60-85 Minutes | D38: 75 | E38: X
B39: Grade 6 English Language Arts – Section 1 | C39: 70-90 Minutes | D39: =MROUND((70+90)/2,5) -> 80 | E39: X
B40: Grade 6 English Language Arts – Section 2 | C40: 60-85 Minutes | D40: =MROUND((60+85)/2,5) -> 75 | E40: X
B41: Grade 6 English Language Arts – Section 3 | C41: 60-85 Minutes | D41: 75 | E41: X
B42: Grade 7 English Language Arts – Section 1 | C42: 70-90 Minutes | D42: =MROUND((70+90)/2,5) -> 80 | E42: X
B43: Grade 7 English Language Arts – Section 2 | C43: 60-85 Minutes | D43: =MROUND((60+85)/2,5) -> 75 | E43: X
B44: Grade 7 English Language Arts – Section 3 | C44: 60-85 Minutes | D44: 75 | E44: X
B45: Grade 8 English Language Arts – Section 1 | C45: 70-90 Minutes | D45: =MROUND((70+90)/2,5) -> 80 | E45: X | F45: X
B46: Grade 8 English Language Arts – Section 2 | C46: 60-85 Minutes | D46: =MROUND((60+85)/2,5) -> 75 | E46: X | F46: X
B47: Grade 8 English Language Arts – Section 3 | C47: 60-85 Minutes | D47: 75 | E47: X
B48: Grade 3 Mathematics – Section 1 | C48: 60-85 Minutes | D48: 75 | E48: X
B49: Grade 3 Mathematics – Section 2 | C49: 60-85 Minutes | D49: 75 | E49: X
B50: Grade 4 Mathematics – Section 1 | C50: 60-85 Minutes | D50: 75 | E50: X
B51: Grade 4 Mathematics – Section 2 | C51: 60-85 Minutes | D51: 75 | E51: X
B52: Grade 5 Mathematics – Section 1 | C52: 60-85 Minutes | D52: 75 | E52: X | F52: X
B53: Grade 5 Mathematics – Section 2 | C53: 60-85 Minutes | D53: 75 | E53: X | F53: X
B54: Grade 6 Mathematics – Section 1 | C54: 60-85 Minutes | D54: 75 | E54: X
B55: Grade 6 Mathematics – Section 2 | C55: 60-85 Minutes | D55: 75 | E55: X
B56: Grade 7 Mathematics – Section 1 | C56: 60-85 Minutes | D56: 75 | E56: X
B57: Grade 7 Mathematics – Section 2 | C57: 60-85 Minutes | D57: 75 | E57: X
B58: Grade 8 Mathematics – Section 1 | C58: 60-85 Minutes | D58: 75 | E58: X | F58: X
B59: Grade 8 Mathematics – Section 2 | C59: 60-85 Minutes | D59: 75 | E59: X | F59: X
B60: Grade 5 Science – Section 1 | C60: 45-70 Minutes | D60: =MROUND((45+70)/2,5) -> 60 | E60: X
B61: Grade 5 Science – Section 2 | C61: 45-70 Minutes | D61: 60 | E61: X
B62: Grade 8 Science – Section 1 | C62: 45-70 Minutes | D62: 60 | E62: X
B63: Grade 8 Science – Section 2 | C63: 45-70 Minutes | D63: 60 | E63: X
B64: Grade 5 Social Studies – Section 1 | C64: 45-70 Minutes | D64: 60 | E64: X
B65: Grade 5 Social Studies – Section 2 | C65: 45-70 Minutes | D65: 60 | E65: X
B66: Grade 8 Social Studies – Section 1 | C66: 45-70 Minutes | D66: 60 | E66: X
B67: Grade 8 Social Studies – Section 2 | C67: 45-70 Minutes | D67: 60 | E67: X
B72: EOC
C73: Section 1 | D73: 2 | E73: 3
B74: American Literature and Composition | C74: x | D74: x | E74: x
B75: Ninth Grade Literature and Composition | C75: x | D75: x | E75: x
B76: Algebra I | C76: x | D76: x
B77: Analytic Geometry | C77: x | D77: x
B78: Biology | C78: x | D78: x
B79: Coordinate Algebra | C79: x | D79: x
B80: Economics/Business/Free Enterprise | C80: x | D80: x
B81: Geometry | C81: x | D81: x
B82: Physical Science | C82: x | D82: x
B83: United States History | C83: x | D83: x
B85: EOG
D86: Section 1 | E86: 2 | F86: 3
B87: English Language Arts | C87: Grade 3 | D87: x | E87: x | F87: x
B88: English Language Arts | C88: Grade 4 | D88: x | E88: x | F88: x
B89: English Language Arts | C89: Grade 5 | D89: x | E89: x | F89: x
B90: English Language Arts | C90: Grade 6 | D90: x | E90: x | F90: x
B91: English Language Arts | C91: Grade 7 | D91: x | E91: x | F91: x
B92: English Language Arts | C92: Grade 8 | D92: x | E92: x | F92: x
B93: Mathematics | C93: Grade 3 | D93: x | E93: x
B94: Mathematics | C94: Grade 4 | D94: x | E94: x
B95: Mathematics | C95: Grade 5 | D95: x | E95: x
B96: Mathematics | C96: Grade 6 | D96: x | E96: x
B97: Mathematics | C97: Grade 7 | D97: x | E97: x
B98: Mathematics | C98: Grade 8 | D98: x | E98: x
B99: Science | C99: Grade 5 | D99: x | E99: x
B100: Science | C100: Grade 8 | D100: x | E100: x
B101: Social Studies | C101: Grade 5 | D101: x | E101: x
B102: Social Studies | C102: Grade 8 | D102: x | E102: x
